[Event "*** Titled Tuesday 3|2 Blitz (Late)"]
[Site "Chess.com"]
[Date "2017.01.03"]
[Round "3"]
[White "Alexander_Moskalenko"]
[Black "FastChance"]
[Result "1-0"]
[WhiteElo "2687"]
[BlackElo "2494"]
[TimeControl "180+2"]
[EndTime "17:31:11 PST"]
[Termination "Alexander_Moskalenko won by resignation"]

1. d4 {[%clk 0:03:02]} 1... e6 {[%clk 0:03:00.4]} 2. e4 {[%clk 0:03:02.7]} 2...
d5 {[%clk 0:03:01]} 3. Nd2 {[%clk 0:03:03.8]} 3... a6 {[%clk 0:03:01.9]} 4. Ngf3
{[%clk 0:03:02.4]} 4... Nf6 {[%clk 0:03:03.1]} 5. e5 {[%clk 0:03:02.9]} 5...
Nfd7 {[%clk 0:03:03.9]} 6. Bd3 {[%clk 0:03:04.6]} 6... c5 {[%clk 0:03:05.2]} 7.
c3 {[%clk 0:03:06.5]} 7... Nc6 {[%clk 0:03:06.6]} 8. O-O {[%clk 0:03:06.2]} 8...
g5 {[%clk 0:03:00.5]} 9. Nb3 {[%clk 0:03:01.2]} 9... h6 {[%clk 0:02:59.8]} 10.
dxc5 {[%clk 0:02:54.9]} 10... Nxc5 {[%clk 0:02:58.7]} 11. Nxc5 {[%clk 0:02:56]}
11... Bxc5 {[%clk 0:03:00.2]} 12. h3 {[%clk 0:02:55.6]} 12... f5 {[%clk
0:02:58.9]} 13. b4 {[%clk 0:02:46.7]} 13... Bb6 {[%clk 0:02:53.8]} 14. a4 {[%clk
0:02:48.2]} 14... O-O {[%clk 0:02:49.4]} 15. Qe2 {[%clk 0:02:47.4]} 15... Bd7
{[%clk 0:02:46.1]} 16. Be3 {[%clk 0:02:48.4]} 16... Be8 {[%clk 0:02:42.2]} 17.
a5 {[%clk 0:02:41.7]} 17... Bxe3 {[%clk 0:02:40.6]} 18. Qxe3 {[%clk 0:02:43.6]}
18... Bg6 {[%clk 0:02:39.7]} 19. Nd4 {[%clk 0:02:42.9]} 19... Nxd4 {[%clk
0:02:32.3]} 20. cxd4 {[%clk 0:02:41.7]} 20... Qe7 {[%clk 0:02:21.9]} 21. f4
{[%clk 0:02:42.8]} 21... Kg7 {[%clk 0:02:09.6]} 22. Rfc1 {[%clk 0:02:37.4]}
22... Rac8 {[%clk 0:02:09.7]} 23. Rc5 {[%clk 0:02:34.5]} 23... Rc7 {[%clk
0:02:04.1]} 24. g3 {[%clk 0:02:34.4]} 24... Rfc8 {[%clk 0:02:03.3]} 25. Kh2
{[%clk 0:02:31.5]} 25... gxf4 {[%clk 0:01:51.2]} 26. gxf4 {[%clk 0:02:32.5]}
26... Kh7 {[%clk 0:01:51.7]} 27. Be2 {[%clk 0:02:28.2]} 27... Qh4 {[%clk
0:01:42.8]} 28. Qg3 {[%clk 0:02:28.1]} 28... Qxg3+ {[%clk 0:01:42.5]} 29. Kxg3
{[%clk 0:02:30]} 29... Be8 {[%clk 0:01:41.7]} 30. Kf2 {[%clk 0:02:22.4]} 30...
Rxc5 {[%clk 0:01:32.2]} 31. bxc5 {[%clk 0:02:23.1]} 31... Bc6 {[%clk 0:01:32.3]}
32. Bh5 {[%clk 0:02:16.2]} 32... Rc7 {[%clk 0:01:32.2]} 33. Rb1 {[%clk
0:02:07.7]} 33... Bb5 {[%clk 0:01:28.2]} 34. Be2 {[%clk 0:02:07]} 34... Bc6
{[%clk 0:01:27.7]} 35. Bd1 {[%clk 0:02:06.6]} 35... Kg7 {[%clk 0:01:28.2]} 36.
Rb4 {[%clk 0:02:08.1]} 36... Kh7 {[%clk 0:01:28.4]} 37. Ba4 {[%clk 0:02:09.6]}
37... Bxa4 {[%clk 0:01:21]} 38. Rxa4 {[%clk 0:02:11.5]} 38... Kg7 {[%clk
0:01:22.8]} 39. Rb4 {[%clk 0:02:12.8]} 39... Kf7 {[%clk 0:01:24.4]} 40. Rb6
{[%clk 0:02:14.3]} 40... Ke7 {[%clk 0:01:25]} 41. Kg3 {[%clk 0:02:15.8]} 41...
Kf7 {[%clk 0:01:06.7]} 42. Kh4 {[%clk 0:02:16.5]} 42... Re7 {[%clk 0:01:05.7]}
43. Kh5 {[%clk 0:02:16.7]} 43... Kg7 {[%clk 0:01:06.5]} 44. Rd6 {[%clk
0:02:16.8]} 44... Kh7 {[%clk 0:01:04.1]} 45. c6 {[%clk 0:02:15.8]} 45... bxc6
{[%clk 0:01:04.9]} 46. Rxc6 {[%clk 0:02:17.7]} 46... Kg7 {[%clk 0:01:02.9]} 47.
Rxa6 {[%clk 0:02:18.4]} 47... Kh7 {[%clk 0:01:04.6]} 48. Rb6 {[%clk 0:02:19.7]}
48... Kg7 {[%clk 0:01:05.5]} 49. a6 {[%clk 0:02:21]} 1-0

[Event "*** Titled Tuesday 3|2 Blitz (Late)"]
[Site "Chess.com"]
[Date "2017.01.03"]
[Round "3"]
[White "Ar4uha"]
[Black "rithwik2002"]
[Result "0-1"]
[WhiteElo "1215"]
[BlackElo "1724"]
[TimeControl "180+2"]
[EndTime "17:32:01 PST"]
[Termination "rithwik2002 won by checkmate"]

1. e4 {[%clk 0:02:56.3]} 1... e6 {[%clk 0:02:58]} 2. c4 {[%clk 0:02:56.5]} 2...
d5 {[%clk 0:02:55.4]} 3. exd5 {[%clk 0:02:57.6]} 3... exd5 {[%clk 0:02:56.2]} 4.
cxd5 {[%clk 0:02:59.1]} 4... Nf6 {[%clk 0:02:55.8]} 5. Bb5+ {[%clk 0:02:59.1]}
5... Bd7 {[%clk 0:02:52.5]} 6. Bc4 {[%clk 0:02:59.4]} 6... Bg4 {[%clk
0:02:51.4]} 7. Qb3 {[%clk 0:02:56.3]} 7... Bd6 {[%clk 0:02:20.4]} 8. Ne2 {[%clk
0:02:49.4]} 8... O-O {[%clk 0:02:15.5]} 9. O-O {[%clk 0:02:50]} 9... Nxd5 {[%clk
0:02:06]} 10. Bxd5 {[%clk 0:02:41.2]} 10... Bxe2 {[%clk 0:02:04.1]} 11. Re1
{[%clk 0:02:42.2]} 11... Ba6 {[%clk 0:02:02.6]} 12. Bxb7 {[%clk 0:02:38.6]}
12... Bxb7 {[%clk 0:01:58.3]} 13. Qxb7 {[%clk 0:02:39.6]} 13... Re8 {[%clk
0:01:52.2]} 14. Rf1 {[%clk 0:02:20.7]} 14... Nd7 {[%clk 0:01:48]} 15. Nc3 {[%clk
0:02:20.8]} 15... Rb8 {[%clk 0:01:40.7]} 16. Qd5 {[%clk 0:02:20]} 16... Nb6
{[%clk 0:01:36.5]} 17. Qf3 {[%clk 0:02:19.6]} 17... Nc4 {[%clk 0:01:35.1]} 18.
b3 {[%clk 0:02:06.4]} 18... Ne5 {[%clk 0:01:32.5]} 19. Qh3 {[%clk 0:02:07.8]}
19... Nd3 {[%clk 0:01:26.9]} 20. Rb1 {[%clk 0:01:47.9]} 20... Bc5 {[%clk
0:01:22.2]} 21. Bb2 {[%clk 0:01:45.9]} 21... Nxf2 {[%clk 0:01:14.7]} 22. Qf5
{[%clk 0:01:31.4]} 22... Re5 {[%clk 0:00:55.3]} 23. Qf3 {[%clk 0:01:09.6]} 23...
Qd3 {[%clk 0:00:40.8]} 24. Rxf2 {[%clk 0:00:52.4]} 24... Qxb1+ {[%clk
0:00:17.9]} 25. Nd1 {[%clk 0:00:38]} 25... Re1# {[%clk 0:00:17.1]} 0-1

[Event "*** Titled Tuesday 3|2 Blitz (Late)"]
[Site "Chess.com"]
[Date "2017.01.03"]
[Round "3"]
[White "avto24"]
[Black "QuintilianoR"]
[Result "0-1"]
[WhiteElo "2345"]
[BlackElo "2528"]
[TimeControl "180+2"]
[EndTime "17:32:09 PST"]
[Termination "QuintilianoR won by resignation"]

1. e4 {[%clk 0:03:02]} 1... c5 {[%clk 0:02:36.4]} 2. c3 {[%clk 0:03:02.3]} 2...
Nf6 {[%clk 0:02:36.8]} 3. e5 {[%clk 0:03:02.5]} 3... Nd5 {[%clk 0:02:38]} 4. d4
{[%clk 0:03:02.5]} 4... cxd4 {[%clk 0:02:39.9]} 5. Nf3 {[%clk 0:03:03]} 5... e6
{[%clk 0:02:41.4]} 6. cxd4 {[%clk 0:03:03.7]} 6... d6 {[%clk 0:02:43]} 7. Bd3
{[%clk 0:03:04.1]} 7... Nc6 {[%clk 0:02:44.6]} 8. a3 {[%clk 0:03:05]} 8... Be7
{[%clk 0:02:44.5]} 9. O-O {[%clk 0:03:06.6]} 9... dxe5 {[%clk 0:02:45.3]} 10.
dxe5 {[%clk 0:03:06.3]} 10... g5 {[%clk 0:02:46.9]} 11. Bb5 {[%clk 0:02:36.7]}
11... Bd7 {[%clk 0:02:45.5]} 12. Nc3 {[%clk 0:02:31.4]} 12... Nxc3 {[%clk
0:02:43.2]} 13. bxc3 {[%clk 0:02:31.3]} 13... g4 {[%clk 0:02:41.9]} 14. Bxc6
{[%clk 0:02:31.2]} 14... Bxc6 {[%clk 0:02:43.8]} 15. Nd4 {[%clk 0:02:31.6]}
15... h5 {[%clk 0:02:40.3]} 16. Be3 {[%clk 0:02:24.7]} 16... Rc8 {[%clk
0:02:36.3]} 17. Rb1 {[%clk 0:02:23.2]} 17... Be4 {[%clk 0:02:34.5]} 18. Rb3
{[%clk 0:02:16.9]} 18... Bd5 {[%clk 0:02:31.8]} 19. Rb1 {[%clk 0:02:09.5]} 19...
a6 {[%clk 0:02:29.2]} 20. Qc2 {[%clk 0:01:51.1]} 20... Qa5 {[%clk 0:02:27.6]}
21. Rfc1 {[%clk 0:01:51.2]} 21... Bxa3 {[%clk 0:02:25.7]} 22. Rd1 {[%clk
0:01:51.1]} 22... Qxc3 {[%clk 0:02:25.1]} 23. Qe2 {[%clk 0:01:48.3]} 23... Qc4
{[%clk 0:02:11.8]} 24. Qe1 {[%clk 0:01:47.8]} 24... Qc3 {[%clk 0:02:07.5]} 25.
Qe2 {[%clk 0:01:12.6]} 25... Bc4 {[%clk 0:02:02.3]} 26. Qc2 {[%clk 0:01:05.8]}
26... Qxc2 {[%clk 0:02:03.1]} 27. Nxc2 {[%clk 0:01:06.4]} 27... Be7 {[%clk
0:01:51.5]} 28. Rxb7 {[%clk 0:01:01.9]} 28... Bd5 {[%clk 0:01:52.3]} 29. Rxd5
{[%clk 0:00:50]} 29... exd5 {[%clk 0:01:51]} 30. Nd4 {[%clk 0:00:49.9]} 30...
Bc5 {[%clk 0:01:38.7]} 31. Nf5 {[%clk 0:00:49.6]} 31... O-O {[%clk 0:01:25.3]}
32. Bg5 {[%clk 0:00:30.9]} 32... Rb8 {[%clk 0:01:18.5]} 33. Nh6+ {[%clk
0:00:30.2]} 33... Kg7 {[%clk 0:01:16.8]} 0-1

[Event "*** Titled Tuesday 3|2 Blitz (Late)"]
[Site "Chess.com"]
[Date "2017.01.03"]
[Round "3"]
[White "pedromartinez91"]
[Black "VerdeNotte"]
[Result "0-1"]
[WhiteElo "2294"]
[BlackElo "2493"]
[TimeControl "180+2"]
[EndTime "17:32:21 PST"]
[Termination "VerdeNotte won by resignation"]

1. e4 {[%clk 0:02:59.9]} 1... c5 {[%clk 0:02:59.9]} 2. Nf3 {[%clk 0:03:00.4]}
2... d6 {[%clk 0:03:01]} 3. Bb5+ {[%clk 0:03:00.8]} 3... Nc6 {[%clk 0:03:01.9]}
4. O-O {[%clk 0:03:00.9]} 4... Bd7 {[%clk 0:03:02.9]} 5. Re1 {[%clk 0:03:00.9]}
5... Nf6 {[%clk 0:03:03.5]} 6. c3 {[%clk 0:03:01.3]} 6... a6 {[%clk 0:03:04.5]}
7. Bxc6 {[%clk 0:03:02.2]} 7... Bxc6 {[%clk 0:03:05.6]} 8. d4 {[%clk 0:03:03.8]}
8... Bxe4 {[%clk 0:03:04.1]} 9. Nbd2 {[%clk 0:03:04]} 9... Bc6 {[%clk
0:02:49.3]} 10. c4 {[%clk 0:03:00.1]} 10... g6 {[%clk 0:02:45.5]} 11. d5 {[%clk
0:02:58.9]} 11... Bd7 {[%clk 0:02:46.4]} 12. Qb3 {[%clk 0:02:59.4]} 12... Bg7
{[%clk 0:02:41.9]} 13. Qxb7 {[%clk 0:02:54.6]} 13... O-O {[%clk 0:02:42.3]} 14.
Qb3 {[%clk 0:02:55.1]} 14... Rb8 {[%clk 0:02:41.8]} 15. Qe3 {[%clk 0:02:54.1]}
15... Re8 {[%clk 0:02:32.6]} 16. Qa3 {[%clk 0:02:53.8]} 16... Rb4 {[%clk
0:02:17.5]} 17. h3 {[%clk 0:02:00.6]} 17... Qb8 {[%clk 0:02:07.4]} 18. Qxa6
{[%clk 0:01:59.1]} 18... Ra4 {[%clk 0:02:06.8]} 19. Qxa4 {[%clk 0:01:47.7]}
19... Bxa4 {[%clk 0:02:06.9]} 20. b3 {[%clk 0:01:36.3]} 20... Nxd5 {[%clk
0:01:55.1]} 21. cxd5 {[%clk 0:01:37.8]} 21... Bxa1 {[%clk 0:01:54.2]} 22. bxa4
{[%clk 0:01:39.4]} 22... Qb7 {[%clk 0:01:43.2]} 23. Ne4 {[%clk 0:01:15.7]} 23...
Qxd5 {[%clk 0:01:25.6]} 24. Bg5 {[%clk 0:01:16]} 24... Qxa2 {[%clk 0:01:22.1]}
25. Nxd6 {[%clk 0:01:11.2]} 25... Bc3 {[%clk 0:00:52.2]} 26. Re3 {[%clk
0:01:02.9]} 26... Qb1+ {[%clk 0:00:43.8]} 27. Kh2 {[%clk 0:01:01.9]} 27... Qb8
{[%clk 0:00:42.4]} 28. Rxc3 {[%clk 0:00:52.1]} 28... exd6 {[%clk 0:00:43.3]} 29.
g3 {[%clk 0:00:40.6]} 29... Qb2 {[%clk 0:00:39.3]} 30. Bd2 {[%clk 0:00:36.6]}
30... Re2 {[%clk 0:00:39.8]} 31. Rd3 {[%clk 0:00:29.5]} 31... Rxf2+ {[%clk
0:00:40.7]} 32. Kg1 {[%clk 0:00:30.4]} 32... Rxf3 {[%clk 0:00:41.6]} 0-1

[Event "*** Titled Tuesday 3|2 Blitz (Late)"]
[Site "Chess.com"]
[Date "2017.01.03"]
[Round "3"]
[White "ChristopherYoo"]
[Black "TrickyTrapChess"]
[Result "0-1"]
[WhiteElo "2057"]
[BlackElo "2150"]
[TimeControl "180+2"]
[EndTime "17:32:26 PST"]
[Termination "TrickyTrapChess won by resignation"]

1. e4 {[%clk 0:03:02]} 1... c5 {[%clk 0:02:58.2]} 2. Nf3 {[%clk 0:03:02.4]} 2...
g6 {[%clk 0:02:55]} 3. d4 {[%clk 0:03:03.1]} 3... cxd4 {[%clk 0:02:54.5]} 4.
Nxd4 {[%clk 0:03:04.7]} 4... Bg7 {[%clk 0:02:54.3]} 5. Nc3 {[%clk 0:03:05.1]}
5... Nc6 {[%clk 0:02:52.3]} 6. Be3 {[%clk 0:03:05.3]} 6... Nf6 {[%clk
0:02:50.5]} 7. f3 {[%clk 0:03:05.6]} 7... O-O {[%clk 0:02:49.3]} 8. Qd2 {[%clk
0:03:03.4]} 8... d5 {[%clk 0:02:47.8]} 9. exd5 {[%clk 0:02:51.1]} 9... Nxd5
{[%clk 0:02:45.8]} 10. Nxc6 {[%clk 0:02:51.7]} 10... bxc6 {[%clk 0:02:44.5]} 11.
Bd4 {[%clk 0:02:47.8]} 11... e5 {[%clk 0:02:43.1]} 12. Bc5 {[%clk 0:02:48.1]}
12... Re8 {[%clk 0:02:41.2]} 13. O-O-O {[%clk 0:02:45.8]} 13... Be6 {[%clk
0:02:39.2]} 14. Ne4 {[%clk 0:02:18.8]} 14... h6 {[%clk 0:02:24.4]} 15. c4 {[%clk
0:02:04.1]} 15... Nb6 {[%clk 0:02:20.5]} 16. Nd6 {[%clk 0:02:00.1]} 16... Re7
{[%clk 0:02:19]} 17. Qe3 {[%clk 0:01:14.1]} 17... Rd7 {[%clk 0:02:15.4]} 18. Be2
{[%clk 0:01:12.8]} 18... Rb8 {[%clk 0:02:04.7]} 19. Qa3 {[%clk 0:01:05.3]} 19...
Qg5+ {[%clk 0:01:58]} 20. Kb1 {[%clk 0:00:59.8]} 20... e4 {[%clk 0:01:55]} 21.
Nxe4 {[%clk 0:00:50.3]} 21... Qxg2 {[%clk 0:01:55]} 22. Bxb6 {[%clk 0:00:21.3]}
22... Rxd1+ {[%clk 0:01:48.3]} 23. Rxd1 {[%clk 0:00:13.9]} 23... Qxe2 {[%clk
0:01:49.2]} 24. Rd2 {[%clk 0:00:05.5]} 24... Qe1+ {[%clk 0:01:47.4]} 25. Kc2
{[%clk 0:00:06.9]} 25... Rxb6 {[%clk 0:01:45.4]} 26. b3 {[%clk 0:00:07.1]} 26...
Bf5 {[%clk 0:01:43]} 27. Rd8+ {[%clk 0:00:07.4]} 27... Kh7 {[%clk 0:01:42]} 28.
Re8 {[%clk 0:00:06.4]} 28... Qc3+ {[%clk 0:01:40.6]} 29. Kd1 {[%clk 0:00:06.3]}
29... Qd3+ {[%clk 0:01:40.6]} 30. Ke1 {[%clk 0:00:06.2]} 30... Qxf3 {[%clk
0:01:38.8]} 31. Nd2 {[%clk 0:00:04]} 31... Qh1+ {[%clk 0:01:34.9]} 32. Ke2
{[%clk 0:00:05.4]} 32... Qxh2+ {[%clk 0:01:34.4]} 33. Kd1 {[%clk 0:00:06.4]}
33... Qg1+ {[%clk 0:01:33.3]} 34. Re1 {[%clk 0:00:07]} 34... Qg4+ {[%clk
0:01:32.7]} 35. Kc1 {[%clk 0:00:07.5]} 35... Qd4 {[%clk 0:01:33.5]} 36. Kd1
{[%clk 0:00:04.5]} 36... Qa1+ {[%clk 0:01:32.5]} 37. Ke2 {[%clk 0:00:05.8]}
37... Qc3 {[%clk 0:01:32.7]} 38. Qc5 {[%clk 0:00:05.8]} 38... Qd3+ {[%clk
0:01:32.2]} 39. Kd1 {[%clk 0:00:05.8]} 39... Bb2 {[%clk 0:01:22.1]} 40. Qe3
{[%clk 0:00:04.7]} 40... Bg4+ {[%clk 0:01:22.9]} 41. Re2 {[%clk 0:00:06.1]}
41... Qxe3 {[%clk 0:01:23.1]} 0-1

[Event "*** Titled Tuesday 3|2 Blitz (Late)"]
[Site "Chess.com"]
[Date "2017.01.03"]
[Round "3"]
[White "pKiLz5Rn9b"]
[Black "stalyansky"]
[Result "1-0"]
[WhiteElo "2464"]
[BlackElo "1085"]
[TimeControl "180+2"]
[EndTime "17:32:30 PST"]
[Termination "pKiLz5Rn9b won by resignation"]

1. e4 {[%clk 0:03:02]} 1... e5 {[%clk 0:02:59.9]} 2. Nf3 {[%clk 0:03:03.1]} 2...
Nc6 {[%clk 0:03:00.9]} 3. Bc4 {[%clk 0:03:04.5]} 3... Bc5 {[%clk 0:03:01.2]} 4.
c3 {[%clk 0:03:06]} 4... Nf6 {[%clk 0:03:01.6]} 5. d3 {[%clk 0:03:07.7]} 5... a6
{[%clk 0:03:02]} 6. h3 {[%clk 0:03:08.1]} 6... Ba7 {[%clk 0:03:03.2]} 7. Bb3
{[%clk 0:03:09]} 7... d6 {[%clk 0:03:04.3]} 8. Nbd2 {[%clk 0:03:10.4]} 8... Be6
{[%clk 0:03:05.3]} 9. Nf1 {[%clk 0:03:11.6]} 9... Qe7 {[%clk 0:03:05.9]} 10. Ng3
{[%clk 0:03:12.9]} 10... h6 {[%clk 0:02:53.4]} 11. Be3 {[%clk 0:03:13.6]} 11...
Bxe3 {[%clk 0:02:49.1]} 12. fxe3 {[%clk 0:03:14.5]} 12... O-O-O {[%clk
0:02:46.2]} 13. O-O {[%clk 0:03:12.2]} 13... g5 {[%clk 0:02:38.8]} 14. Nd2
{[%clk 0:03:11.6]} 14... g4 {[%clk 0:02:25.5]} 15. h4 {[%clk 0:03:11.2]} 15...
Nd7 {[%clk 0:02:11.1]} 16. Bxe6 {[%clk 0:03:03.7]} 16... fxe6 {[%clk 0:01:58.9]}
17. Qxg4 {[%clk 0:02:58.5]} 17... Rdg8 {[%clk 0:01:58.9]} 18. Qh3 {[%clk
0:03:00.1]} 18... h5 {[%clk 0:01:50]} 19. Nf3 {[%clk 0:02:56.8]} 19... Nf6
{[%clk 0:01:21.3]} 20. Ng5 {[%clk 0:02:56.3]} 20... Ng4 {[%clk 0:01:21.6]} 21.
Ne2 {[%clk 0:02:55.9]} 21... d5 {[%clk 0:01:06.8]} 22. Rf7 {[%clk 0:02:54.7]}
22... Qd6 {[%clk 0:01:03.8]} 23. d4 {[%clk 0:02:49.5]} 23... Nd8 {[%clk
0:01:02.7]} 24. Rf3 {[%clk 0:02:47.7]} 24... dxe4 {[%clk 0:00:59.4]} 25. Nxe4
{[%clk 0:02:48.2]} 25... Qb6 {[%clk 0:00:47]} 26. Rb1 {[%clk 0:02:45.9]} 26...
Qb5 {[%clk 0:00:40.9]} 27. N2g3 {[%clk 0:02:42]} 27... Qd3 {[%clk 0:00:38]} 28.
Re1 {[%clk 0:02:43]} 28... Rf8 {[%clk 0:00:30.6]} 29. Ref1 {[%clk 0:02:30.4]}
29... Rxf3 {[%clk 0:00:29.1]} 30. Rxf3 {[%clk 0:02:28.9]} 30... Nxe3 {[%clk
0:00:27.2]} 31. Nf1 {[%clk 0:02:24.5]} 31... Qxe4 {[%clk 0:00:27.3]} 32. Rxe3
{[%clk 0:02:25.9]} 32... Qb1 {[%clk 0:00:26.4]} 33. Rxe5 {[%clk 0:02:24]} 33...
Rf8 {[%clk 0:00:25.8]} 34. g3 {[%clk 0:02:21.5]} 34... Qxb2 {[%clk 0:00:26.7]}
35. Qg2 {[%clk 0:02:15.9]} 35... Qxc3 {[%clk 0:00:27.7]} 36. Qe2 {[%clk
0:02:15.7]} 36... Qxd4+ {[%clk 0:00:28.4]} 37. Kg2 {[%clk 0:02:17]} 37... Qa4
{[%clk 0:00:23.7]} 38. Qxh5 {[%clk 0:02:07.9]} 38... Qxa2+ {[%clk 0:00:21.4]}
39. Qe2 {[%clk 0:02:08.5]} 39... Qa4 {[%clk 0:00:20.3]} 40. h5 {[%clk 0:02:08]}
40... Nc6 {[%clk 0:00:20.4]} 41. Re4 {[%clk 0:02:07.5]} 41... Qa1 {[%clk
0:00:19.8]} 42. Rxe6 {[%clk 0:02:05.7]} 42... Nd8 {[%clk 0:00:12.5]} 43. Re4
{[%clk 0:02:03.9]} 43... Qh8 {[%clk 0:00:12.1]} 44. g4 {[%clk 0:02:04.3]} 44...
b5 {[%clk 0:00:11.2]} 45. Ng3 {[%clk 0:02:05.1]} 45... Nc6 {[%clk 0:00:08.9]}
46. Nf5 {[%clk 0:02:04.9]} 46... Qg8 {[%clk 0:00:07.7]} 47. Re6 {[%clk 0:02:03]}
47... Rxf5 {[%clk 0:00:06.9]} 48. Re8+ {[%clk 0:02:04.2]} 48... Kb7 {[%clk
0:00:07]} 49. Rxg8 {[%clk 0:02:04.3]} 1-0

[Event "*** Titled Tuesday 3|2 Blitz (Late)"]
[Site "Chess.com"]
[Date "2017.01.03"]
[Round "3"]
[White "Hikaru"]
[Black "MbMaster"]
[Result "1-0"]
[WhiteElo "2845"]
[BlackElo "2380"]
[TimeControl "180+2"]
[EndTime "17:32:34 PST"]
[Termination "Hikaru won by resignation"]

1. b3 {[%clk 0:03:02]} 1... e5 {[%clk 0:02:56.6]} 2. Bb2 {[%clk 0:03:03.9]} 2...
Nc6 {[%clk 0:02:56.6]} 3. g3 {[%clk 0:03:04.1]} 3... d5 {[%clk 0:02:56.2]} 4.
Bg2 {[%clk 0:03:05.6]} 4... Be6 {[%clk 0:02:57.2]} 5. e3 {[%clk 0:03:06.7]} 5...
Qd7 {[%clk 0:02:42.9]} 6. d3 {[%clk 0:03:07.8]} 6... Bd6 {[%clk 0:02:30.7]} 7.
a3 {[%clk 0:03:08.2]} 7... Nge7 {[%clk 0:02:20.9]} 8. Nd2 {[%clk 0:03:07.9]}
8... O-O {[%clk 0:02:13.7]} 9. b4 {[%clk 0:03:06.8]} 9... Rae8 {[%clk
0:02:10.8]} 10. c4 {[%clk 0:03:07.1]} 10... dxc4 {[%clk 0:01:55.7]} 11. dxc4
{[%clk 0:03:08.2]} 11... Ng6 {[%clk 0:01:56.2]} 12. c5 {[%clk 0:03:00.6]} 12...
Be7 {[%clk 0:01:56.5]} 13. h4 {[%clk 0:03:01.8]} 13... Bf6 {[%clk 0:01:50.2]}
14. Ne4 {[%clk 0:03:00.8]} 14... Qxd1+ {[%clk 0:01:36.5]} 15. Rxd1 {[%clk
0:03:02.7]} 15... Rd8 {[%clk 0:01:36.8]} 16. h5 {[%clk 0:02:47.8]} 16... Nge7
{[%clk 0:01:33.5]} 17. Nxf6+ {[%clk 0:02:43.1]} 17... gxf6 {[%clk 0:01:33.8]}
18. Ne2 {[%clk 0:02:44.7]} 18... Rxd1+ {[%clk 0:01:16.3]} 19. Kxd1 {[%clk
0:02:46.6]} 19... Bb3+ {[%clk 0:01:13.4]} 20. Kc1 {[%clk 0:02:47.5]} 20... Rd8
{[%clk 0:01:10]} 21. Nc3 {[%clk 0:02:46.2]} 21... h6 {[%clk 0:00:51.2]} 22. Ne4
{[%clk 0:02:38.5]} 22... Kg7 {[%clk 0:00:51.9]} 23. Nd2 {[%clk 0:02:34.1]} 23...
Bd5 {[%clk 0:00:52.4]} 24. e4 {[%clk 0:02:33.4]} 24... Be6 {[%clk 0:00:53.2]}
25. f4 {[%clk 0:02:34.2]} 25... Bg4 {[%clk 0:00:50.3]} 26. Nf3 {[%clk
0:02:06.2]} 26... Rd3 {[%clk 0:00:47.3]} 27. fxe5 {[%clk 0:02:02.3]} 27... Bxf3
{[%clk 0:00:30.5]} 28. exf6+ {[%clk 0:02:03.3]} 28... Kf8 {[%clk 0:00:25.4]} 29.
fxe7+ {[%clk 0:02:05.2]} 29... Nxe7 {[%clk 0:00:21.1]} 30. Bxf3 {[%clk
0:02:07.1]} 30... Rxf3 {[%clk 0:00:22.2]} 31. Rd1 {[%clk 0:02:07.4]} 31... Nc6
{[%clk 0:00:21.8]} 32. g4 {[%clk 0:02:05.5]} 32... Ke7 {[%clk 0:00:22]} 33. g5
{[%clk 0:02:01.8]} 33... hxg5 {[%clk 0:00:22.3]} 34. Rh1 {[%clk 0:02:02.9]}
34... g4 {[%clk 0:00:22]} 35. h6 {[%clk 0:02:03.8]} 35... g3 {[%clk 0:00:21]}
36. Rg1 {[%clk 0:02:05]} 36... g2 {[%clk 0:00:21.3]} 37. Rxg2 {[%clk 0:02:05.4]}
37... Rh3 {[%clk 0:00:23]} 38. Bg7 {[%clk 0:02:06.2]} 38... Ke6 {[%clk
0:00:22.4]} 39. Rf2 {[%clk 0:02:03.9]} 39... Ne5 {[%clk 0:00:23.1]} 40. Bxe5
{[%clk 0:02:03]} 40... Kxe5 {[%clk 0:00:24.6]} 41. Rxf7 {[%clk 0:02:04.2]} 41...
Rxh6 {[%clk 0:00:25.8]} 42. Rxc7 {[%clk 0:02:05.2]} 42... Kxe4 {[%clk
0:00:26.2]} 43. Rxb7 {[%clk 0:02:06.4]} 43... Kd3 {[%clk 0:00:27.7]} 44. Rxa7
{[%clk 0:02:02.7]} 44... Rh1+ {[%clk 0:00:23.8]} 45. Kb2 {[%clk 0:02:03.7]}
45... Kc4 {[%clk 0:00:25]} 46. Rg7 {[%clk 0:01:59.8]} 46... Rh2+ {[%clk
0:00:25.8]} 47. Kc1 {[%clk 0:02:00.4]} 47... Rh3 {[%clk 0:00:26.7]} 48. Ra7
{[%clk 0:01:55]} 48... Kc3 {[%clk 0:00:26.4]} 49. Kd1 {[%clk 0:01:56.5]} 49...
Kd3 {[%clk 0:00:27.6]} 50. Ke1 {[%clk 0:01:57.3]} 50... Kc4 {[%clk 0:00:28.2]}
51. c6 {[%clk 0:01:57.5]} 51... Rh6 {[%clk 0:00:28.9]} 52. c7 {[%clk 0:01:58.3]}
52... Rc6 {[%clk 0:00:29.6]} 53. Rb7 {[%clk 0:01:59.3]} 53... Kb3 {[%clk
0:00:30]} 54. b5 {[%clk 0:02:00.8]} 54... Rc1+ {[%clk 0:00:30]} 55. Kf2 {[%clk
0:02:01.8]} 55... Ka4 {[%clk 0:00:31.5]} 56. b6 {[%clk 0:02:03]} 56... Ka5
{[%clk 0:00:33]} 57. Rb8 {[%clk 0:02:04.4]} 57... Ka6 {[%clk 0:00:34.2]} 1-0

[Event "*** Titled Tuesday 3|2 Blitz (Late)"]
[Site "Chess.com"]
[Date "2017.01.03"]
[Round "3"]
[White "chesstatour"]
[Black "norwaytoadog"]
[Result "0-1"]
[WhiteElo "1793"]
[BlackElo "1945"]
[TimeControl "180+2"]
[EndTime "17:32:36 PST"]
[Termination "norwaytoadog won on time"]

1. c4 {[%clk 0:03:02]} 1... Nf6 {[%clk 0:02:58.4]} 2. Nc3 {[%clk 0:02:59.3]}
2... e5 {[%clk 0:02:58.5]} 3. e4 {[%clk 0:03:00.7]} 3... Nc6 {[%clk 0:02:58]} 4.
Nf3 {[%clk 0:03:02.3]} 4... Bb4 {[%clk 0:02:55.4]} 5. d3 {[%clk 0:03:02]} 5...
O-O {[%clk 0:02:54.9]} 6. Be2 {[%clk 0:03:02]} 6... Re8 {[%clk 0:02:49.6]} 7.
O-O {[%clk 0:03:00.9]} 7... Nd4 {[%clk 0:02:44]} 8. a3 {[%clk 0:02:28.3]} 8...
Bxc3 {[%clk 0:02:35.2]} 9. bxc3 {[%clk 0:02:30.2]} 9... Nxe2+ {[%clk 0:02:35.3]}
10. Qxe2 {[%clk 0:02:30.2]} 10... d6 {[%clk 0:02:34.7]} 11. h3 {[%clk
0:02:27.2]} 11... c6 {[%clk 0:02:30.5]} 12. Bg5 {[%clk 0:02:20.4]} 12... h6
{[%clk 0:02:29.3]} 13. Bh4 {[%clk 0:02:16.6]} 13... g5 {[%clk 0:02:28.9]} 14.
Nxg5 {[%clk 0:02:11.2]} 14... hxg5 {[%clk 0:02:28.8]} 15. Bxg5 {[%clk
0:02:13.1]} 15... Re6 {[%clk 0:02:16.6]} 16. f4 {[%clk 0:02:12.1]} 16... Qb6+
{[%clk 0:02:13.7]} 17. Kh2 {[%clk 0:01:40.9]} 17... Nh7 {[%clk 0:01:46.6]} 18.
f5 {[%clk 0:01:01.4]} 18... Nxg5 {[%clk 0:01:27]} 19. fxe6 {[%clk 0:00:48]}
19... Nxe6 {[%clk 0:01:23.2]} 20. Qf3 {[%clk 0:00:21.4]} 20... Qc7 {[%clk
0:01:15.1]} 21. Ra2 {[%clk 0:00:18.7]} 21... Qe7 {[%clk 0:01:07]} 22. Raf2
{[%clk 0:00:18.6]} 22... Bd7 {[%clk 0:01:01]} 23. Qxf7+ {[%clk 0:00:17.2]} 23...
Qxf7 {[%clk 0:01:00.7]} 24. Rxf7 {[%clk 0:00:19.1]} 24... Rd8 {[%clk 0:00:59.6]}
25. R7f6 {[%clk 0:00:14.7]} 25... Nf4 {[%clk 0:00:52.7]} 26. d4 {[%clk
0:00:07.5]} 26... Ne2 {[%clk 0:00:45.2]} 27. Rxd6 {[%clk 0:00:04.9]} 27... exd4
{[%clk 0:00:43.8]} 28. cxd4 {[%clk 0:00:04.3]} 28... b5 {[%clk 0:00:43]} 29. c5
{[%clk 0:00:03.5]} 29... Nc3 {[%clk 0:00:41.4]} 30. Re1 {[%clk 0:00:02.9]} 30...
Kf7 {[%clk 0:00:38.7]} 0-1